bitfinex/quotes_ETHUSD_20220112
["timestamp","ask_amount","ask_price","bid_price","bid_amount"]
[1642017333217,4.42466855,3381.8,3380.9,1.47848]
[1642017333218,0.1183,3381.8,3380.9,1.47848]
[1642017333411,3.8693,3381.9,3381.4,0.73927]
[1642017333610,0.1183,3381.9,3381.4,0.73927]
[1642017333810,0.1183,3381.9,3381.5,0.00170527]
[1642017334009,1.18849934,3381.8,3381.5,0.00170527]
[1642017334609,1.16872267,3381.7,3381.5,0.00170527]
[1642017335211,1.46872267,3381.7,3381.5,0.00170527]
[1642017335411,0.1182,3381.6,3381.5,0.00170527]
[1642017335674,0.1182,3381.6,3380.9,0.00511581]
[1642017335875,1.46872267,3381.7,3381.0,0.00454739]
[1642017336275,1.46872267,3381.7,3380.8,0.00568423]
[1642017336679,1.46872267,3381.7,3381.3,0.7393]
[1642017337080,1.46872267,3381.7,3381.4,0.00227369]
[1642017338075,0.4182,3381.7,3381.4,0.00227369]
[1642017338278,0.1182,3381.7,3381.5,0.73926]
[1642017338583,0.00113685,3382.0,3381.6,0.00113685]
[1642017339077,0.00113685,3382.0,3381.6,0.30113685]
[1642017339721,0.00113685,3382.0,3381.8,0.73914]
[1642017340114,0.00113685,3382.0,3381.8,1.03914]
[1642017342119,0.00113685,3382.0,3381.9,7.98344011]
[1642017342325,0.00113685,3382.0,3381.9,8.10164011]
[1642017342521,0.00113685,3382.0,3381.9,5.30557643]
[1642017342921,0.00113685,3382.0,3381.9,0.15557643]
[1642017343160,0.00113685,3382.0,3381.9,0.1182]
[1642017343361,2.00113685,3382.0,3381.9,0.1182]
[1642017343760,0.00113685,3382.0,3381.9,0.1182]
[1642017347207,0.00113685,3382.0,3381.8,1.17733997]
[1642017348208,0.00113685,3382.0,3381.8,1.21437062]
[1642017348409,0.00113685,3382.0,3381.8,1.17733997]
[1642017350418,0.00113685,3382.0,3381.8,0.43819997]
[1642017350853,0.00113685,3382.0,3381.7,0.1182]
[1642017351053,0.00170528,3381.9,3381.7,0.1182]
[1642017351459,0.00113685,3381.8,3381.7,1.59651]
[1642017352661,0.00113685,3381.8,3381.7,1.47831]
[1642017355714,0.00113685,3381.8,3381.5,0.1182]
[1642017355910,0.00113685,3381.8,3381.4,1.47845]
[1642017355911,0.7392764,3381.7,3381.4,1.47845]
[1642017356111,1.4786408,3381.6,3381.4,1.47845]
[1642017357108,1.4786408,3381.6,3381.0,1.2444]
[1642017357308,1.4786408,3381.6,3381.0,0.73934]
[1642017357511,1.4786408,3381.6,3381.1,0.00284211]
[1642017357709,1.33726004,3381.5,3381.1,0.00284211]
[1642017358350,2.2179761,3381.4,3381.1,0.73933]
[1642017358750,2.2179761,3381.4,3381.2,0.00227369]
[1642017359563,1.4786441,3381.4,3381.3,1.30237501]
[1642017359761,0.00113685,3381.8,3381.5,1.47802]
[1642017359959,0.00113685,3381.8,3381.6,0.00353403]
[1642017360161,0.00113685,3381.8,3381.5,0.73901]
[1642017360358,0.00113685,3381.8,3381.5,1.47802]
[1642017360861,0.00113685,3381.8,3381.7,0.739]
[1642017361059,0.00113685,3381.8,3381.5,0.73901]
[1642017361756,0.00113685,3381.8,3381.6,1.47824]
[1642017362007,0.30113685,3381.8,3381.5,0.73901]
[1642017362407,2.51889105,3381.8,3381.5,0.73901]
[1642017362905,2.51889105,3381.8,3381.5,2.21735]
[1642017363107,2.21889105,3381.8,3381.5,2.21735]
[1642017363306,0.7391413,3381.7,3381.5,2.21735]
[1642017363510,0.7391413,3381.7,3381.5,2.33555]
[1642017363706,0.7391413,3381.7,3381.6,0.73923]
[1642017365108,0.7391413,3381.7,3381.5,2.95648]
[1642017366382,0.7391413,3381.7,3381.5,2.21735]
[1642017367786,0.00113685,3381.8,3381.6,0.73906]
[1642017367985,0.00113685,3381.8,3381.6,1.59631]
[1642017369608,0.74036745,3381.8,3381.6,0.1182]
[1642017369908,0.74036745,3381.8,3381.6,3.1182]
[1642017370807,0.74036745,3381.8,3381.6,3.0]
[1642017371009,0.74036745,3381.8,3381.6,3.73923]
[1642017376671,0.74036745,3381.8,3381.7,2.53785912]
[1642017379712,0.00113685,3381.8,3381.7,2.53785912]
[1642017381755,1.4782973,3381.9,3381.7,2.53785912]
[1642017382155,1.4782973,3381.9,3381.6,5.21758]
[1642017382355,0.0089074,3381.8,3381.6,5.21758]
[1642017382756,1.4782973,3381.9,3381.6,5.21758]
[1642017383958,1.4782973,3381.9,3381.7,2.53803206]
[1642017386207,2.78951988,3381.9,3381.7,2.53803206]
[1642017386411,1.4782973,3381.9,3381.7,2.53803206]
[1642017389064,1.4782973,3381.9,3381.6,4.47835]
[1642017389664,1.4782973,3381.9,3381.6,5.21759]
[1642017389874,0.7391404,3381.8,3381.7,0.1182]
[1642017390069,1.5963565,3382.2,3381.7,1.59631]
[1642017390266,0.00170528,3381.9,3381.7,1.59631]
[1642017390666,0.00113685,3381.8,3381.7,1.59631]
[1642017390868,0.00113685,3381.8,3381.7,3.33535]
[1642017391065,0.00113685,3381.8,3381.7,2.33535]
[1642017391267,0.00113685,3381.8,3381.7,6.88535]
[1642017393710,0.00113685,3381.8,3381.7,7.88535]
[1642017394112,0.00113685,3381.8,3381.7,6.88535]
[1642017394514,0.7390629,3382.0,3381.9,0.06341215]
[1642017394914,0.74019975,3382.0,3381.9,0.06341215]
[1642017395780,0.00113685,3382.0,3381.9,0.80243215]
[1642017395982,0.00113685,3382.0,3381.9,0.92063215]
[1642017397385,0.00113685,3382.0,3381.9,0.80243215]
[1642017401014,0.00113685,3382.0,3381.9,0.06341215]
[1642017404270,0.00113685,3382.0,3381.9,6.76341215]
[1642017404468,0.00113685,3382.0,3381.9,7.06341215]
[1642017404771,0.13819997,3382.8,3382.0,4.65]
[1642017404971,0.13819997,3382.8,3382.6,1.30736672]
[1642017405172,0.00397896,3382.7,3382.6,1.30736672]
[1642017406172,0.00397896,3382.7,3382.6,2.78527672]
[1642017406173,0.74293186,3382.7,3382.6,2.78527672]
[1642017407209,0.74293186,3382.7,3382.6,1.47791]
[1642017407811,0.74293186,3382.7,3382.5,1.92126]
[1642017408215,0.00341054,3382.6,3382.5,1.92126]
[1642017410114,0.00341054,3382.6,3382.5,2.22126]
[1642017410512,0.00341054,3382.6,3382.5,1.92126]
[1642017411368,0.00341054,3382.6,3382.5,4.45855901]
[1642017411666,0.00341054,3382.6,3382.5,7.45855901]
[1642017412266,0.00341054,3382.6,3382.5,4.92126]
[1642017412467,0.00341054,3382.6,3382.5,5.03946]
[1642017413665,0.00341054,3382.6,3382.5,4.92126]
[1642017413868,0.00341054,3382.6,3382.5,5.22126]
[1642017414513,0.7388995,3383.0,3382.5,5.22126]
[1642017414715,1.93244433,3383.3,3382.7,0.73895]
[1642017414914,0.00113685,3382.8,3382.5,3.73893]
[1642017415113,0.00113685,3382.8,3382.7,0.739]
[1642017417716,0.00113685,3382.8,3382.7,1.039]
[1642017418157,0.00113685,3382.8,3382.6,1.48231]
[1642017418360,17.4782,3382.7,3382.6,1.18231]
[1642017418563,18.8995,3382.7,3382.6,1.18231]
[1642017418759,18.8995,3382.7,3382.5,4.18238]
[1642017418959,6.12422002,3382.6,3382.5,4.18238]
[1642017419160,6.66742002,3382.6,3382.5,4.18238]
[1642017419359,6.66742002,3382.6,3382.5,3.0]
[1642017419560,4.91060548,3382.6,3382.5,3.0]
[1642017419760,3.46742002,3382.6,3382.5,3.0]
[1642017420360,0.1182,3382.6,3382.5,3.0]
[1642017420763,0.7392123,3382.7,3382.5,3.0]
[1642017422043,0.7392123,3382.7,3382.5,3.3]
[1642017423747,0.7392123,3382.7,3382.5,4.03902]
[1642017426963,0.7392123,3382.7,3382.5,3.3]
[1642017430024,0.7392123,3382.7,3382.6,1.37275792]
[1642017430526,0.7392123,3382.7,3382.5,4.33458]
[1642017430827,0.7392123,3382.7,3382.5,4.77361]
[1642017431428,0.7392123,3382.7,3382.5,5.95302651]
[1642017431826,0.7392123,3382.7,3382.6,2.53678763]
[1642017432228,0.00113685,3382.8,3382.6,3.27561763]
[1642017432427,0.00113685,3382.8,3382.7,7.55699]
[1642017432627,0.1182,3383.5,3382.8,8.17757]
[1642017432929,0.00341054,3383.4,3382.9,0.1182]
[1642017433170,0.00341054,3383.4,3383.1,0.36939]
[1642017433367,0.00294211,3383.5,3383.3,6.7]
[1642017433562,0.25386556,3384.1,3383.4,6.8182]
[1642017433764,5.04762479,3384.8,3383.5,8.17708]
[1642017433970,5.04762479,3384.8,3383.6,0.1181]
[1642017433971,0.00397897,3384.0,3383.6,0.1181]
[1642017434171,0.00397897,3384.0,3383.7,1.45862031]
[1642017434364,2.76329852,3384.6,3383.8,0.48752]
[1642017434365,0.00341054,3383.9,3383.8,0.48752]
[1642017434565,0.00341054,3383.9,3383.8,0.78752]
[1642017434864,0.00341054,3383.9,3383.8,1.5262]
[1642017435064,0.00341054,3383.9,3383.8,1.4762]
[1642017435465,0.00341054,3383.9,3383.8,1.358]
[1642017436168,0.00341054,3383.9,3383.8,4.141511]
[1642017437119,0.00341054,3383.9,3383.8,3.89478763]
[1642017437318,0.00341054,3383.9,3383.8,3.59478763]
[1642017437523,0.12161054,3383.9,3383.8,2.85610763]
[1642017437722,6.67161054,3383.9,3383.8,2.85610763]
[1642017438119,6.67161054,3383.9,3383.8,2.53678763]
[1642017438520,9.67590952,3383.9,3383.8,8.763e-05]
[1642017438720,9.67590952,3383.9,3383.5,0.36947]
[1642017438927,0.0126584,3383.7,3383.5,0.36947]
[1642017439129,0.1182,3383.6,3383.5,0.36947]
[1642017439326,0.11990527,3383.6,3383.5,0.36947]
[1642017441177,0.11990527,3383.6,3383.5,3.36947]
[1642017441379,2.92538919,3383.6,3383.5,3.0]
[1642017441584,17.84490527,3383.6,3383.5,3.0]
[1642017442786,17.84490527,3383.6,3382.9,0.29564]
[1642017442787,6.7,3383.5,3382.9,0.29564]
[1642017442983,17.3,3383.2,3382.9,0.29564]
[1642017443182,17.3,3383.2,3383.0,0.00170527]
[1642017443183,17.725,3383.2,3383.0,0.00170527]
[1642017443484,5.7182,3383.1,3383.0,0.00170527]
[1642017444287,3.6,3383.0,3382.9,0.24734527]
[1642017444525,4.275,3383.0,3382.9,0.24734527]
[1642017446326,6.93841413,3383.0,3382.9,0.24734527]
[1642017449171,0.725,3383.0,3382.9,0.24734527]
[1642017449480,0.7390487,3383.1,3382.9,0.24734527]
[1642017452341,0.7390487,3383.1,3382.9,3.24734527]
[1642017452541,3.34057462,3383.1,3382.9,3.24734527]
[1642017452742,0.7390487,3383.1,3382.9,3.24734527]
[1642017452943,3.33182341,3383.1,3382.9,3.24734527]
[1642017453142,0.7390487,3383.1,3382.9,3.24734527]
[1642017453743,1.0390487,3383.1,3382.9,3.24734527]
[1642017454544,0.7390487,3383.1,3382.9,3.24734527]
[1642017454943,1.0390487,3383.1,3382.9,3.24734527]
[1642017455144,3.64166352,3383.1,3382.9,3.24734527]
[1642017455346,2.62123005,3383.0,3382.9,3.24734527]
[1642017455547,2.62123005,3383.0,3382.3,0.5617]
[1642017455548,6.6,3382.9,3382.3,0.5617]
[1642017455778,2.2176798,3382.7,3382.3,0.1182]
[1642017455980,0.425,3382.6,3382.4,0.00341054]
[1642017456587,5.70205893,3382.5,3382.4,0.00341054]
[1642017456783,7.5758689,3382.5,3382.4,0.00341054]
[1642017456987,8.2689689,3382.5,3382.4,0.00341054]
[1642017457184,8.2689689,3382.5,3381.5,3.973]
[1642017457185,8.6814689,3382.5,3382.3,0.00397896]
[1642017457387,6.8182,3382.4,3382.0,0.00568423]
[1642017457585,6.8182,3382.4,3381.7,0.0073895]
[1642017457586,1.425,3382.3,3381.7,0.0073895]
[1642017457785,2.336487,3382.2,3381.6,0.00795793]
[1642017457982,0.425,3382.1,3381.6,0.00795793]
[1642017458185,0.1182,3382.0,3381.6,0.00795793]
[1642017458385,0.425,3381.9,3381.6,0.00795793]
[1642017458584,0.725,3381.9,3381.6,0.00795793]
[1642017458787,1.09406512,3381.4,3381.1,0.0278632]
[1642017458989,1.83343462,3381.4,3381.1,0.1182]
[1642017459185,0.00716643,3381.3,3381.1,0.44363]
[1642017459440,0.00716643,3381.3,3381.1,0.56183]
[1642017459644,1.83343462,3381.4,3381.1,0.56183]
[1642017460347,0.7393695,3381.4,3381.1,0.44363]
[1642017460546,1.903739,3381.6,3381.2,2.65555964]
[1642017460547,0.425,3381.6,3381.2,2.65555964]
[1642017460748,0.74211202,3381.8,3381.2,2.65555964]
[1642017460945,0.00113685,3381.5,3381.2,2.65555964]
[1642017461145,0.0022737,3381.7,3381.2,2.65555964]
[1642017461545,0.00170527,3381.6,3381.3,1.15028885]
[1642017461747,0.00170527,3381.6,3381.4,0.22179]
[1642017461945,0.00113685,3381.5,3381.4,0.22179]
[1642017462548,0.00113685,3381.5,3381.4,0.52179]
[1642017463193,0.00113685,3381.5,3381.4,3.05914964]
[1642017463784,0.00113685,3381.5,3381.4,3.79837964]
[1642017464184,0.00113685,3381.5,3381.4,3.49837964]
[1642017464385,0.00113685,3381.5,3381.4,3.05914964]
[1642017464687,0.00113685,3381.5,3381.4,3.17734964]
[1642017464885,0.00113685,3381.5,3381.4,3.91653964]
[1642017465288,0.00113685,3381.5,3381.4,3.61653964]
[1642017465486,0.00113685,3381.5,3381.4,3.79833964]
[1642017465886,0.00113685,3381.5,3381.4,3.05914964]
[1642017466487,0.00113685,3381.5,3381.4,2.75914964]
[1642017467527,0.00113685,3381.5,3381.4,3.05914964]
[1642017467732,1.61914846,3382.0,3381.5,0.06228315]
[1642017467926,1.61914846,3382.0,3381.6,0.22177]
[1642017468128,0.0022737,3381.9,3381.6,0.22177]
[1642017468526,0.00170527,3381.8,3381.6,0.22177]
[1642017468728,0.00170527,3381.8,3381.6,2.75912964]
[1642017468927,0.00113685,3381.7,3381.6,2.75912964]
[1642017469730,0.00113685,3381.7,3381.6,0.22177]
[1642017469931,0.00113685,3381.7,3381.6,5.28997]
[1642017470332,0.00113685,3381.7,3381.6,0.33997]
[1642017471970,0.00113685,3381.7,3381.6,0.63997]
[1642017472375,0.00113685,3381.7,3381.6,3.13997]
[1642017474626,0.00113685,3381.7,3381.6,3.02177]
[1642017475234,0.1182,3382.4,3381.7,6.7]
[1642017475535,0.1182,3382.4,3382.0,1.26069]
[1642017475729,0.27028879,3382.6,3382.2,6.7]
[1642017476130,0.00454739,3382.5,3382.4,1.36029649]
[1642017476329,0.00454739,3382.5,3382.4,2.09929649]
[1642017476530,0.00454739,3382.5,3382.4,2.39929649]
[1642017478572,0.00454739,3382.5,3382.4,2.09929649]
[1642017478776,0.00454739,3382.5,3382.3,0.96071]
[1642017479077,0.00397896,3382.4,3382.3,0.22171]
[1642017480379,0.7389753,3382.7,3382.4,0.2217]
[1642017480784,0.00113685,3382.6,3382.4,0.2217]
[1642017481586,0.00113685,3382.6,3382.5,1.42733099]
[1642017482128,0.00113685,3382.6,3382.4,0.2217]
[1642017484124,0.00113685,3382.6,3382.4,3.2217]
[1642017485132,0.00113685,3382.6,3382.4,3.0]
[1642017485133,22.9432,3382.5,3382.4,3.0]
[1642017485332,23.2432,3382.5,3382.4,3.0]
[1642017485529,23.2432,3382.5,3382.4,1.1215]
[1642017485530,23.6044,3382.5,3382.4,1.1215]
[1642017485796,23.5,3382.4,3381.8,0.07394]
[1642017485987,4.4071145,3382.3,3381.8,0.07394]
[1642017486182,5.94990607,3382.3,3381.9,0.00284211]
[1642017486383,6.24990607,3382.3,3381.9,0.00284211]
[1642017486785,0.739337,3382.2,3381.9,0.07678211]
[1642017486986,3.21960674,3382.1,3381.9,0.07678211]
[1642017487187,3.21960674,3382.1,3382.0,0.00227369]
[1642017487390,3.51960674,3382.1,3382.0,0.00227369]
[1642017487590,3.45734374,3382.1,3382.0,0.00227369]
[1642017487789,0.780937,3382.1,3382.0,0.00227369]
[1642017488788,3.43653112,3382.1,3382.0,0.00227369]
[1642017488987,0.780937,3382.1,3382.0,0.00227369]
[1642017489427,3.41610596,3382.1,3382.0,0.00227369]
[1642017490027,20.71610596,3382.1,3382.0,0.00227369]
[1642017490242,6.7,3382.0,3381.5,0.07394]
[1642017490428,20.88115882,3381.9,3381.5,0.07394]
[1642017490630,1.1643827,3381.8,3381.6,0.0022737]
[1642017490830,2.78291754,3381.7,3381.6,0.0022737]
[1642017491028,3.08291754,3381.7,3381.6,0.0022737]
[1642017491627,4.31967925,3381.7,3381.6,0.0022737]
[1642017492029,1.53676171,3381.7,3381.6,0.0022737]
[1642017492228,4.18408963,3381.7,3381.6,0.0022737]
[1642017492628,4.18408963,3381.7,3381.6,3.0022737]
[1642017492829,21.48408963,3381.7,3381.6,3.0022737]
[1642017493270,21.48408963,3381.7,3381.6,0.0022737]
[1642017495281,4.18408963,3381.7,3381.6,0.0022737]
[1642017495676,1.53676171,3381.7,3381.6,0.0022737]
[1642017497318,18.83676171,3381.7,3381.6,0.0022737]
[1642017498421,19.26176171,3381.7,3381.6,0.0022737]
[1642017499223,1.96176171,3381.7,3381.6,0.0022737]
[1642017499430,4.7921752,3381.7,3381.6,0.0022737]
[1642017499627,1.96176171,3381.7,3381.6,0.0022737]
[1642017500430,4.60258807,3381.7,3381.6,0.0022737]
[1642017500668,21.90258807,3381.7,3381.5,0.07394]
[1642017500871,2.66110837,3381.6,3381.5,0.07394]
[1642017502375,2.66110837,3381.6,3380.8,1.3497549]
[1642017502673,0.7393875,3381.3,3380.9,0.00397896]
[1642017502874,0.3,3381.3,3380.9,0.00397896]
[1642017503075,0.3,3381.3,3380.9,0.74335896]
[1642017503275,0.3,3381.3,3381.0,0.1183]
[1642017503477,2.96110837,3381.6,3381.0,0.12171054]
[1642017503680,1.4787749,3381.2,3381.1,0.00284211]
[1642017504081,2.2181623,3381.7,3381.1,0.12114211]
[1642017504287,2.82113048,3382.2,3381.1,0.12114211]
[1642017504531,2.27380745,3382.4,3381.2,0.12047369]
[1642017504732,0.00284212,3382.1,3381.2,0.12047369]
[1642017504928,2.27380745,3382.4,3381.3,1.47997527]
[1642017504929,0.7391595,3382.0,3381.3,1.47997527]
[1642017505128,1.41715511,3381.7,3381.4,0.4182]
[1642017505331,1.41715511,3381.7,3381.5,1.47827]
[1642017505529,1.41715511,3381.7,3381.6,0.1182]
[1642017506933,1.71715511,3381.7,3381.6,0.1182]
[1642017507332,1.71715511,3381.7,3381.6,2.65569702]
[1642017507532,0.00170528,3381.9,3381.6,2.95569702]
[1642017507731,0.00170528,3381.9,3381.6,4.43389702]
[1642017507930,0.00113685,3381.8,3381.6,4.43389702]
[1642017508373,1.0391155,3382.0,3381.6,4.43389702]
[1642017508374,0.00170528,3381.9,3381.6,4.43389702]
[1642017508574,0.00170528,3381.9,3381.7,1.47597716]
[1642017508776,0.7391155,3382.0,3381.8,2.7182]
[1642017508979,0.7391155,3382.0,3381.8,3.0182]
[1642017509178,0.00170528,3381.9,3381.8,3.0182]
[1642017509579,0.00341055,3382.2,3381.8,3.0182]
[1642017509978,1.4781376,3382.6,3381.8,3.0182]
[1642017509979,0.00284212,3382.1,3381.8,3.0182]
[1642017510177,0.00284212,3382.1,3381.9,2.53749702]
[1642017510380,0.7390317,3382.4,3382.0,3.3182]
[1642017510578,1.8448319,3382.4,3382.0,4.35724]
[1642017510880,1.84937929,3382.4,3382.0,4.35724]
[1642017511179,0.3,3382.3,3382.0,4.35724]
[1642017511383,0.00454739,3382.4,3382.0,4.35724]
[1642017511384,0.30454739,3382.4,3382.0,4.35724]
[1642017511583,0.00341055,3382.2,3382.0,4.35724]
[1642017511783,0.00397897,3382.3,3382.0,4.35724]
[1642017512024,1.29258051,3382.6,3382.3,0.73902]
[1642017512225,2.03158031,3382.6,3382.3,0.73902]
[1642017512422,2.33726455,3382.6,3382.4,0.3]
[1642017513126,2.33726455,3382.6,3382.4,1.03902]
[1642017513529,2.33726455,3382.6,3382.4,0.3]
[1642017513728,2.33726455,3382.6,3382.4,3.0]
[1642017513927,2.36980518,3382.6,3382.4,3.0]
[1642017514127,2.36980518,3382.6,3382.4,3.3]
[1642017514330,2.36980518,3382.6,3382.4,3.0]
[1642017514331,2.33726455,3382.6,3382.4,3.0]
[1642017514527,2.36970087,3382.6,3382.4,3.0]
[1642017514730,2.33726455,3382.6,3382.4,3.0]
[1642017514927,2.36959885,3382.6,3382.4,3.0]
[1642017515128,2.37299837,3382.6,3382.4,3.0]
[1642017515328,2.37645894,3382.6,3382.4,3.0]
[1642017515675,5.17870283,3382.5,3382.4,3.0]
[1642017515874,2.62870283,3382.5,3382.4,3.0]
[1642017516080,2.33726455,3382.6,3382.4,3.0]
[1642017516282,5.0063885,3382.6,3382.4,3.0]
[1642017516479,2.37379044,3382.6,3382.4,3.0]
[1642017516680,5.0241321,3382.6,3382.4,3.0]
[1642017516880,2.37379044,3382.6,3382.4,3.0]
[1642017517283,2.33726455,3382.6,3382.4,3.0]
[1642017517481,2.75759433,3382.6,3382.4,3.0]
[1642017518082,2.79754926,3382.6,3382.4,3.0]
[1642017518285,2.37721948,3382.6,3382.4,3.0]
[1642017518481,4.94970633,3382.6,3382.4,3.0]
[1642017518682,22.78383995,3382.5,3382.4,3.0]
[1642017519525,19.93383995,3382.5,3382.4,3.0]
[1642017519728,2.63383995,3382.5,3382.4,3.0]
[1642017519933,3.05416973,3382.5,3382.4,3.0]
[1642017520130,0.42032978,3382.5,3382.4,3.0]
[1642017520928,3.07032978,3382.5,3382.4,3.0]
[1642017521332,0.42032978,3382.5,3382.4,3.0]
[1642017522333,2.03726455,3382.6,3382.4,3.0]
[1642017522538,2.03726455,3382.6,3382.4,3.3]
[1642017522737,2.03726455,3382.6,3382.4,3.4182]
[1642017522935,2.03726455,3382.6,3382.4,3.1182]
[1642017523598,2.33726455,3382.6,3382.4,3.1182]
[1642017523800,2.33726455,3382.6,3382.4,3.0]
[1642017523998,2.37033018,3382.6,3382.4,3.0]
[1642017525204,2.79065996,3382.6,3382.4,3.0]
[1642017525401,2.75759433,3382.6,3382.4,3.0]
[1642017526204,2.45759433,3382.6,3382.5,0.1182]
[1642017526407,2.45759433,3382.6,3382.4,3.3]
[1642017526704,0.00511582,3382.5,3382.4,3.3]
[1642017527134,0.00511582,3382.5,3382.4,4.3]
[1642017527538,2.27380745,3383.5,3382.6,6.7]
[1642017527737,2.27380745,3383.5,3382.6,7.6928]
[1642017527938,0.00341054,3383.1,3383.0,1.47748]
[1642017528142,2.27380745,3383.5,3383.3,1.31780573]
[1642017528341,2.27380745,3383.5,3383.4,0.73879]
[1642017528541,2.27380745,3383.5,3383.4,1.15699]
[1642017529142,0.7387483,3383.7,3383.4,1.15699]
[1642017529343,0.7387483,3383.7,3383.4,1.89575]
[1642017529541,0.30284211,3383.6,3383.4,1.89575]
[1642017529941,0.00227369,3383.5,3383.4,1.89575]
[1642017530352,0.00227369,3383.5,3383.4,2.89575]
[1642017530984,0.00227369,3383.5,3383.4,2.15699]
[1642017531184,0.00227369,3383.5,3383.4,1.15699]
[1642017531385,0.00227369,3383.5,3383.4,2.15699]
[1642017531788,0.00227369,3383.5,3383.4,1.15699]
[1642017531987,0.00227369,3383.5,3383.4,2.15699]
[1642017532989,0.00227369,3383.5,3383.4,1.15699]
[1642017533187,0.00227369,3383.5,3383.4,0.85699]
[1642017533390,2.62761549,3383.5,3383.4,0.1182]
[1642017533590,3.05751549,3383.5,3383.4,3.1182]
[1642017533890,5.90751549,3383.5,3383.4,3.1182]
[1642017534092,20.47571549,3383.5,3383.4,3.0]
[1642017534290,3.17571549,3383.5,3383.4,3.0]
[1642017534547,0.55037369,3383.5,3383.4,3.0]
[1642017534747,0.00717369,3383.5,3383.4,3.0]
[1642017535650,3.65717369,3383.5,3383.4,3.0]
[1642017536448,5.35,3383.4,3382.9,0.3]
[1642017536748,1.38392515,3382.9,3382.7,1.77784]
[1642017537147,0.3,3382.9,3382.8,0.74061527]
[1642017537547,0.00603684,3383.3,3382.8,0.74061527]
[1642017537748,0.00603684,3383.3,3382.8,1.47951527]
[1642017537949,0.00603684,3383.3,3382.9,0.00113685]
[1642017538191,0.7389856,3383.1,3382.9,0.00113685]
[1642017538378,0.7389856,3383.1,3383.0,1.55385841]
[1642017538580,1.0389856,3383.1,3383.0,1.85385841]
[1642017538980,1.0389856,3383.1,3383.0,2.59275841]
[1642017539582,1.0389856,3383.1,3383.0,2.29275841]
[1642017539981,1.0438856,3383.1,3383.0,2.29275841]
[1642017540788,1.08156533,3383.1,3382.9,0.00113685]
[1642017540984,1.0438856,3383.1,3382.9,0.74009685]
[1642017541182,1.07656123,3383.1,3382.9,1.04009685]
[1642017541384,0.3049,3383.1,3382.9,1.04009685]
[1642017542835,0.3049,3383.1,3382.9,2.40775518]
[1642017544240,0.3049,3383.1,3382.9,5.40775518]
[1642017545243,0.3049,3383.1,3383.0,4.6682]
[1642017545442,0.00113684,3383.3,3383.1,2.7]
[1642017545681,0.00113684,3383.3,3383.2,0.73875]
[1642017547492,0.00113684,3383.3,3382.9,5.22594518]
[1642017547690,0.7389676,3383.2,3382.9,5.52594518]
[1642017547891,0.77292529,3383.2,3382.9,5.52594518]
[1642017548291,0.77292529,3383.2,3382.9,4.78699518]
[1642017548695,1.51751106,3383.1,3382.9,4.78699518]
[1642017548990,1.8156992,3383.1,3382.9,4.78699518]
[1642017549190,1.8156992,3383.1,3382.9,3.41933685]
[1642017549434,1.81454754,3383.1,3382.9,3.41933685]
[1642017549631,1.81209109,3383.1,3382.9,3.41933685]
[1642017550031,1.81526564,3383.1,3382.9,3.41933685]
[1642017550440,2.6701657,3383.0,3382.9,3.00113685]
[1642017551538,2.5701657,3383.0,3382.9,3.00113685]
[1642017551938,1.81526564,3383.1,3382.9,3.00113685]
[1642017552140,0.37530354,3383.0,3382.9,3.00113685]
[1642017553781,1.81526564,3383.1,3382.9,3.00113685]
[1642017554785,4.48453658,3383.1,3382.9,3.00113685]
[1642017554985,1.81526564,3383.1,3382.9,3.00113685]
[1642017555184,4.45172228,3383.1,3382.9,3.00113685]
[1642017555586,2.63980189,3383.0,3382.9,3.00113685]
[1642017556588,1.7779512,3383.1,3382.9,3.00113685]
[1642017557260,1.81363849,3383.1,3382.9,3.00113685]
[1642017558266,2.63802824,3383.0,3382.9,3.00113685]
[1642017558564,1.81363849,3383.1,3382.9,3.00113685]
[1642017561789,2.18894203,3383.1,3382.9,3.00113685]
[1642017564189,4.86664073,3383.1,3382.9,3.00113685]
[1642017564436,2.62727636,3383.0,3382.9,3.00113685]
[1642017565641,3.05227636,3383.0,3382.9,3.00113685]
[1642017565840,6.7,3382.9,3381.9,7.16563702]
[1642017566043,0.7392136,3382.5,3381.9,7.04743702]
[1642017566241,20.42105619,3382.4,3382.0,0.00511581]
[1642017566443,20.72105619,3382.4,3382.0,0.00511581]
[1642017566638,1.35605385,3382.2,3382.0,1.52965851]
[1642017567041,1.65605385,3382.2,3382.1,0.00454739]
[1642017567642,2.39529355,3382.2,3382.1,0.00454739]
[1642017567838,5.07885215,3382.2,3382.1,0.00454739]
[1642017568883,4.33961245,3382.2,3381.7,0.00682108]
[1642017569084,1.0392413,3382.0,3381.8,0.1182]
[1642017569286,1.07819967,3382.0,3381.8,0.1182]
[1642017569492,1.07819967,3382.0,3381.9,0.00568423]
[1642017570196,1.07819967,3382.0,3381.8,0.00625266]
[1642017570400,1.07819967,3382.0,3381.9,0.1182]
[1642017570597,1.07819967,3382.0,3381.8,0.00625266]
[1642017570801,1.07819967,3382.0,3381.9,0.00568423]
[1642017570999,1.07819967,3382.0,3381.8,0.00625266]
[1642017571198,3.72624363,3382.0,3381.8,0.00625266]
[1642017571397,1.07819967,3382.0,3381.8,0.00625266]
[1642017573537,1.07819967,3382.0,3381.8,0.02492369]
[1642017573734,1.0392413,3382.0,3381.8,0.00625266]
[1642017573933,1.0392413,3382.0,3381.9,0.00568423]
[1642017574134,1.0392413,3382.0,3381.8,0.00625266]
[1642017574535,1.0392413,3382.0,3381.9,2.53696405]
[1642017574937,1.0392413,3382.0,3381.9,2.54264828]
[1642017575335,0.73913,3382.5,3381.9,2.54264828]
[1642017575336,0.7391111,3382.2,3381.9,2.54264828]
[1642017575535,1.0391111,3382.2,3382.0,0.73912]
[1642017575979,1.0391111,3382.2,3382.1,0.00454739]
[1642017580046,1.07495852,3382.2,3382.1,0.00454739]
[1642017580943,1.07495852,3382.2,3381.9,0.00568423]
[1642017581944,1.0391111,3382.2,3381.9,0.00568423]
[1642017582244,1.0391111,3382.2,3381.9,0.74486423]
[1642017582647,0.77093328,3382.2,3381.9,0.74486423]
[1642017582845,0.7391111,3382.2,3381.9,0.74486423]
[1642017583283,0.77814084,3382.2,3381.9,0.74486423]
[1642017583483,0.7391111,3382.2,3381.9,0.74486423]
[1642017584084,1.0391111,3382.2,3381.9,0.74486423]
[1642017584289,1.07087161,3382.2,3381.9,0.74486423]
[1642017585492,1.07087161,3382.2,3382.0,0.01596122]
[1642017585691,0.77856601,3382.1,3382.0,0.73914]
[1642017585891,1.0391111,3382.2,3382.0,0.73914]
[1642017585892,1.07010143,3382.2,3382.0,0.73914]